[Event "Memorial Ukrainian Chess Warriors 2024"]
[Site "Lviv"]
[Date "2024.03.15"]
[Round "3.11"]
[White "Terletsky, Oleg A."]
[Black "Dubnevych, Maksym"]
[Result "0-1"]
[ECO "C44"]
[WhiteElo "2036"]
[BlackElo "2293"]
[Annotator "TA"]
[PlyCount "42"]
[EventDate "2024.03.06"]
[EventType "swiss"]
[EventCountry "UKR"]
[SourceTitle "playchess.com"]
[Source "ChessBase"]
[SourceQuality "1"]
[TimeControl "600+5"]

{[%evp 14,42,-36,-29,-1,-13,-13,-19,-14,-14,-25,-25,0,-251,-247,-250,-264,-256,-248,-273,-226,-318,-311,-565,-509,-974,-967,-2402,-2331,-5800,-4241]} 1. e4 {[%emt 0:00:02]} e5 {[%emt 0:00:01]} 2. Nf3 {[%emt 0:00:03]} Nc6 {[%emt 0:00:01]} 3. d4 {[%emt 0:00:10]} exd4 {[%emt 0:00:01]} 4. Nxd4 {[%emt 0:00:01]} Nf6 {[%emt 0:00:01]} 5. Nc3 {[%emt 0:00:08]} Bb4 {[%emt 0:00:13]} 6. Nxc6 {[%emt 0:00:40]} bxc6 {[%emt 0:00:33]} 7. Bg5 {[%emt 0:00:44]} h6 {[%emt 0:00:04]} 8. Bh4 {[%emt 0:00:01]} g5 {[%emt 0:00:28]} 9. Bg3 {[%emt 0:00:02]} Nxe4 {[%emt 0:01:22]} 10. Qd4 {[%emt 0:00:29][%csl LRb4,LRe4,LRh8]} Bxc3+ {[%emt 0:00:04] The position is equal.} 11. bxc3 {[%emt 0:00:14] [#]} O-O {[%emt 0:00:23] ...Qe7 is the strong threat.} 12. Bd3 $1 {[%emt 0:00:16]} (12. Qxe4 Re8 13. Be5 Qe7 $17 (13... d6 14. O-O-O $16)) 12... d5 {[%emt 0:01:05] ...c5 would now be deadly.} 13. f3 $2 {[%emt 0:00:28][%mdl 8192] [#]} (13. Bxe4 $11 {and White is okay.} dxe4 14. h4) 13... c5 $1 $19 {[%emt 0:00:12]} 14. Qa4 {[%emt 0:01:16] [#]} Nxg3 {[%emt 0:01:33]} (14... Nxc3 15. Qc6 Qe8+ 16. Qxe8 Rxe8+ 17. Kd2) 15. hxg3 {[%emt 0:00:13]} Qd6 {[%emt 0:00:01]} 16. O-O-O {[%emt 0:01:28]} Bd7 {[%emt 0:01:28] Inhibits c4.} (16... Qxg3 17. Qc6 (17. Rxh6 Be6 $11) 17... Be6 (17... Qf4+ 18. Rd2 $17) 18. Qxc5 $17) 17. Qa5 {[%emt 0:00:20]} (17. Qa6 {might work better.} c6 (17... Qxg3 18. Bh7+ Kh8 19. Qf6+ Kxh7 20. Rxh6+ Kg8 21. Rh8#) 18. c4) 17... Rab8 {[%emt 0:00:18] Hoping for ...Rb6.} ({Not} 17... Qxg3 18. Rxh6 Rab8 19. Qxc5 $11) 18. f4 $2 {[%emt 0:02:08]} (18. Bc4 Bc6 (18... Qxg3 $2 19. Bxd5 Qf4+ 20. Rd2 $19) 19. Bb3) 18... gxf4 {[%emt 0:00:08] Black is clearly winning.} 19. Rh4 {[%emt 0:00:17]} (19. Bc4 $142 c6 (19... fxg3 $2 20. Bb3 $19) 20. Bb3) 19... fxg3 {[%emt 0:00:41]} ({Weaker is} 19... c4 20. Bxc4 Be6 (20... fxg3 21. Qxd5 Qa3+ 22. Kd2 $15) 21. Rxf4 $17) 20. Rf1 {[%emt 0:01:19]} Qe7 {[%emt 0:00:03]} 21. Re4 {[%emt 0:01:01]} dxe4 {[%emt 0:00:05] Black took control after the opening.   Weighted Error Value: White=1.84/Black=0.11 (very precise) .  Loses game:     	White=1     	---        Mistake:       	White=3     	---        Inaccurate:     	White=1     	---        OK:         	White=2     	Black=5      Best:        	White=1     	Black=1      Strong:       	White=1     	Black=1} 0-1

[Event "Memorial Ukrainian Chess Warriors 2024"]
[Site "Lviv"]
[Date "2024.03.15"]
[Round "3.12"]
[White "Sydoryka, Vladyslav"]
[Black "Nakonechnyi, Oleksii"]
[Result "1/2-1/2"]
[ECO "A14"]
[WhiteElo "2310"]
[BlackElo "1756"]
[Annotator "TA"]
[PlyCount "88"]
[EventDate "2024.03.06"]
[EventType "swiss"]
[EventCountry "UKR"]
[SourceTitle "playchess.com"]
[Source "ChessBase"]
[SourceQuality "1"]
[TimeControl "600+5"]

{[%evp 16,88,13,0,18,21,36,30,29,16,18,28,40,32,52,38,49,30,36,24,22,20,50,25,22,3,42,36,41,40,44,46,43,20,61,43,48,-31,0,0,0,0,0,-80,-72,-79,-78,-121,-93,-150,-137,-181,-147,-129,-152,-209,-118,-129,-118,-116,-91,-91,-74,-90,-84,-75,-61,-61,-54,-54,-54,-91,-91,-91,-40]} 1. c4 Nf6 2. g3 e6 3. Bg2 d5 4. Nf3 Be7 5. O-O O-O 6. b3 b6 7. Bb2 Bb7 8. e3 Nbd7 9. Nc3 dxc4 10. bxc4 Nc5 11. d4 Nce4 {White has an edge.} 12. Nxe4 Bxe4 13. Ne5 Bxg2 14. Kxg2 Bd6 15. Nc6 Qe8 16. Qf3 {[%cal Oc4c5]} Nd7 17. Rad1 a5 {[%cal Ba7a5,Ba5a4,Ba4a3][%mdl 32]} 18. Rd2 a4 19. d5 a3 20. Bc3 e5 21. e4 Ra4 22. Qe2 Nb8 23. Nxb8 Qxb8 24. f4 Qe8 25. Qd3 f6 26. Rdf2 {[#]} (26. Re2 $14) 26... b5 $1 27. fxe5 Bxe5 28. Bxe5 Qxe5 29. Rf5 (29. Rc1 $11 {keeps the balance.}) 29... bxc4 $17 30. Qe3 Qd6 31. Qd4 Rd8 32. g4 (32. Rb1 $142) 32... Rb4 33. R1f2 c3 34. Qxc3 Rxe4 35. Qf3 (35. h3 $17 {keeps fighting.}) 35... Re5 (35... Rd4 $19 36. Qg3 Rxd5 37. Qxd6 R8xd6) 36. Rxe5 Qxe5 37. Qxa3 Qxd5+ {[%mdl 4096] Endgame. KQR-KQR} 38. Qf3 Kf7 39. Qxd5+ Rxd5 {KR-KR} 40. Rc2 Kg6 41. Rxc7 Rd2+ 42. Kg3 Rxa2 43. Rc3 {Against Ra3} h5 {[#] ...hxg4 would now be deadly.} 44. h3 Ra4 {Weighted Error Value: White=0.20 (precise) /Black=0.15 (very precise) .  Mistake:       	White=4     	Black=2      Inaccurate:     	White=3     	Black=4      OK:         	White=14    	Black=12     Best:        	White=3     	Black=1} ({Better is} 44... Ra5 $17) 1/2-1/2

[Event "Memorial Ukrainian Chess Warriors 2024"]
[Site "Lviv"]
[Date "2024.03.15"]
[Round "3.13"]
[White "Tarleva, Vira"]
[Black "Mikhaletz, Lubomir"]
[Result "0-1"]
[ECO "B43"]
[WhiteElo "2030"]
[BlackElo "2278"]
[Annotator "TA"]
[PlyCount "96"]
[EventDate "2024.03.06"]
[EventType "swiss"]
[EventCountry "UKR"]
[SourceTitle "playchess.com"]
[Source "ChessBase"]
[SourceQuality "1"]
[TimeControl "600+5"]

{[%evp 10,96,30,11,20,-16,-8,-22,-24,-19,6,-7,-9,-63,-60,-52,-52,-87,-52,-71,-71,-101,-81,-111,-92,-147,-168,-170,-57,-133,-122,-269,-80,-75,-75,-61,-41,-47,-46,-62,-36,-108,-101,-97,-97,-116,-119,-115,-110,-301,-303,-348,-366,-425,-383,-363,-381,-352,-308,-453,-431,-646,-650,-631,-587,-617,-615,-701,-448,-441,-441,-2397,-5181,-4805,-2035,-6506,-5401,-29977,-29977,-29977,-29978,-29986,-5089,-29984,-29985,-29989,-29990,-29990,-29991]} 1. e4 {[%emt 0:00:05]} c5 {[%emt 0:00:05]} 2. Nf3 {[%emt 0:00:05]} e6 {[%emt 0:00:05]} 3. d4 {[%emt 0:00:05]} cxd4 {[%emt 0:00:05]} 4. Nxd4 a6 5. Nc3 {[%emt 0:00:10]} b5 {[%emt 0:00:10][%cal Bb7b5,Bb5b4][%mdl 32]} 6. g3 {[%emt 0:00:05]} b4 {[%emt 0:00:05]} 7. Nce2 {[%emt 0:00:05]} Bb7 {[%emt 0:00:05]} 8. Bg2 {[%emt 0:00:05]} Nf6 {[%emt 0:00:05] The position is equal.} 9. Qd3 {[%emt 0:00:05]} d6 {[%emt 0:00:05]} 10. O-O {[%emt 0:00:05]} Nbd7 {[%emt 0:00:05]} 11. f3 {[%emt 0:02:13]} (11. c3 $11) 11... d5 {[%emt 0:00:14]} 12. exd5 {[%emt 0:01:21]} Nxd5 {[%emt 0:00:11]} 13. c3 {[%emt 0:02:35]} bxc3 {[%emt 0:01:25]} 14. bxc3 {[%emt 0:00:02]} Qc7 {[%emt 0:00:20]} 15. f4 {[%emt 0:00:46]} Bc5 {[%emt 0:00:49]} 16. Kh1 {[%emt 0:00:04]} O-O {[%emt 0:00:11]} 17. f5 {[%emt 0:00:18]} (17. Rb1 $142) 17... e5 $17 {[%emt 0:00:22]} 18. Nb3 {[%emt 0:00:09]} N7f6 {[%emt 0:00:14]} (18... Rad8 $19 {[%cal Oc5b6] Hoping for ...Bb6!} 19. g4 (19. Bxd5 $2 {perishes.} Nf6 $19) 19... Bb6) 19. Nxc5 {[%emt 0:00:05]} (19. g4 $1 $15) 19... Qxc5 {[%emt 0:00:02]} 20. a4 {[%emt 0:00:23] [#]} (20. Rb1 $17 {was necessary.} Bc6 21. c4) 20... e4 $2 {[%emt 0:01:26]} 21. Qd4 {[%emt 0:00:16]} Qxd4 {[%emt 0:00:55]} 22. cxd4 {[%emt 0:00:02]} Rfc8 {[%emt 0:00:07]} 23. Nf4 {[%emt 0:00:21]} Rc2 $36 {[%emt 0:00:04][%mdl 2048] Black fights for an advantage.} 24. h3 {[%emt 0:00:30] White is weak on the light squares} Rac8 {[%emt 0:01:10] Black is much more active.} 25. Rb1 {[%emt 0:00:13] White is on the road to losing.} ({Better is} 25. Nxd5 $15 Bxd5 26. Re1) 25... Bc6 {[%emt 0:00:12]} 26. Nxd5 {[%emt 0:00:07]} Bxd5 {[%emt 0:00:07]} 27. Bg5 {[%emt 0:00:11] [#]} e3 $1 {[%emt 0:00:17][%mdl 512]} 28. Bxd5 {[%emt 0:00:14]} Nxd5 {[%emt 0:00:02]} 29. Rbe1 $2 {[%emt 0:00:32]} (29. Rfe1 $17) 29... R8c3 $19 {[%emt 0:00:20]} 30. Rf3 {[%emt 0:00:17]} f6 {[%emt 0:00:38]} 31. Bxe3 {[%emt 0:00:08]} Rb3 {[%emt 0:00:20]} 32. Kg1 {[%emt 0:00:20]} Rcc3 {[%emt 0:00:10]} 33. Kf2 {[%emt 0:00:01]} h5 {[%emt 0:00:12]} 34. h4 {[%emt 0:00:25]} (34. Re2 $142) 34... Kf7 {[%emt 0:00:16]} 35. g4 {[%emt 0:00:07]} (35. Re2 $142) 35... hxg4 {[%emt 0:00:05]} 36. Rg3 {[%emt 0:00:00]} Nb4 {[%emt 0:00:37] ...Nd3+ is the strong threat.} ({Less strong is} 36... Nxe3 37. Rexe3 Rc2+ 38. Kf1 $17) 37. Re2 {[%emt 0:00:09]} Nc2 {[%emt 0:00:11]} 38. Bf4 {[%emt 0:00:04]} Nxd4 {[%emt 0:00:19]} 39. Rxc3 {[%emt 0:00:05]} Rxc3 {[%emt 0:00:01]} 40. Re3 {[%emt 0:00:02]} (40. Re4 $142 Rf3+ (40... Nxf5 $2 41. h5 $19) 41. Ke1 Nxf5 42. Bb8) 40... Rxe3 {[%emt 0:00:04]} 41. Kxe3 {[%emt 0:00:07]} Nxf5+ {[%emt 0:00:02][%mdl 4096] Endgame. KB-KN} 42. Ke4 {[%emt 0:00:04]} Nxh4 {[%emt 0:00:03] And now ...g5 would win.} 43. a5 {[%emt 0:00:08]} g5 {[%emt 0:00:05]} 44. Bg3 {[%emt 0:00:03]} Ke6 {[%emt 0:00:01]} 45. Kd4 {[%emt 0:00:13]} f5 {[%emt 0:00:01]} (45... Nf5+ $142 46. Kd3 Nxg3 47. Kd2 Nf5 48. Ke1 g3 49. Kf1 Ke5 50. Ke2 Kf4 51. Kf1 Ne3+ 52. Ke2 g2 53. Kf2 f5 54. Kg1 Kf3 55. Kh2 Kf2 56. Kh3 Nc4 (56... g1=R $2 {is a self mate.} 57. Kh2 Ng4+ 58. Kh3 Rh1#) 57. Kh2 g1=Q+ 58. Kh3 Qh1#) 46. Kc5 {[%emt 0:00:09]} f4 {[%emt 0:00:02] Black mates.} 47. Bf2 {[%emt 0:00:06]} g3 {[%emt 0:00:01]} 48. Bg1 {[%emt 0:00:09]} f3 {[%emt 0:00:02] Weighted Error Value: White=0.80/Black=0.42.  Loses game:     	White=1     	---        Missed win:     	---       	Black=1      Mistake:       	White=8     	Black=1      Inaccurate:     	White=3     	Black=2      OK:         	White=11    	Black=10     Best:        	White=1     	Black=1      Brilliant:      	---       	Black=1} 0-1

[Event "Memorial Ukrainian Chess Warriors 2024"]
[Site "Lviv"]
[Date "2024.03.15"]
[Round "3.14"]
[White "Alexikov, Alexander"]
[Black "Toroptseva, Yevheniia"]
[Result "1-0"]
[ECO "B45"]
[WhiteElo "2183"]
[BlackElo "1923"]
[Annotator "RC"]
[PlyCount "67"]
[EventDate "2024.03.06"]
[EventType "swiss"]
[EventCountry "UKR"]
[SourceTitle "playchess.com"]
[Source "ChessBase"]
[SourceQuality "1"]
[TimeControl "600+5"]

1. e4 {[%emt 0:00:05]} c5 {[%emt 0:00:02]} 2. Nf3 {[%emt 0:00:00]} e6 {[%emt 0:00:01]} 3. Nc3 {[%emt 0:00:00]} Nc6 {[%emt 0:00:02]} 4. d4 {[%emt 0:00:00]} cxd4 {[%emt 0:00:01]} 5. Nxd4 {[%emt 0:00:00]} Nf6 {[%emt 0:00:01]} 6. Be2 {[%emt 0:00:01]} Bb4 {[%emt 0:00:02]} 7. Nxc6 {[%emt 0:00:04]} bxc6 {[%emt 0:00:07]} 8. e5 {[%emt 0:00:08]} Nd5 {[%emt 0:00:30]} 9. Bd2 {[%emt 0:00:01]} Bxc3 {[%emt 0:00:01]} 10. bxc3 {[%emt 0:00:01]} Qc7 {[%emt 0:00:32]} 11. c4 {[%emt 0:00:31]} Nb6 {[%emt 0:01:03]} 12. f4 {[%emt 0:00:39]} c5 {[%emt 0:01:14]} 13. O-O {[%emt 0:02:00]} Bb7 {[%emt 0:00:18]} 14. a4 {[%emt 0:00:19]} Ba6 {[%emt 0:00:34]} 15. a5 {[%emt 0:00:35]} Nxc4 {[%emt 0:01:01]} 16. Bc1 {[%emt 0:00:31]} Rb8 {[%emt 0:00:09]} 17. Qd3 {[%emt 0:00:34]} Bb5 {[%emt 0:00:58]} 18. Qg3 {[%emt 0:01:25]} Kf8 {[%emt 0:01:08]} 19. Rb1 {[%emt 0:00:59]} a6 {[%emt 0:00:08]} 20. Bd3 {[%emt 0:01:11]} Nxa5 {[%emt 0:01:03]} 21. f5 {[%emt 0:00:52]} Bxd3 {[%emt 0:00:20]} 22. Rxb8+ {[%emt 0:00:01]} Qxb8 {[%emt 0:00:01]} 23. cxd3 {[%emt 0:00:02]} Nc6 {[%emt 0:00:52]} 24. f6 {[%emt 0:01:16]} gxf6 {[%emt 0:00:53]} 25. Bh6+ {[%emt 0:00:03]} Ke7 {[%emt 0:00:09]} 26. exf6+ {[%emt 0:00:12]} Kd8 {[%emt 0:00:01]} 27. Qg7 {[%emt 0:00:12]} Kc7 {[%emt 0:00:22]} 28. Qxf7 {[%emt 0:00:08]} Ne5 {[%emt 0:00:18]} 29. Bf4 {[%emt 0:00:16]} Kc6 {[%emt 0:00:25]} 30. Qh5 {[%emt 0:00:12]} d6 {[%emt 0:00:04]} 31. f7 {[%emt 0:00:10]} Ng6 {[%emt 0:00:12]} 32. Bh6 {[%emt 0:00:07]} Qb7 {[%emt 0:00:13]} 33. Qf3+ {[%emt 0:00:05]} Kc7 {[%emt 0:00:05]} 34. f8=Q {[%emt 0:00:05]} 1-0

[Event "Memorial Ukrainian Chess Warriors 2024"]
[Site "Lviv"]
[Date "2024.03.15"]
[Round "3.15"]
[White "Ivanov, Taras"]
[Black "Bykovskiy, Oleg"]
[Result "0-1"]
[ECO "A05"]
[WhiteElo "1831"]
[BlackElo "2231"]
[Annotator "TA"]
[PlyCount "76"]
[EventDate "2024.03.06"]
[EventType "swiss"]
[EventCountry "UKR"]
[SourceTitle "playchess.com"]
[Source "ChessBase"]
[SourceQuality "1"]
[TimeControl "600+5"]

{[%evp 14,76,4,0,-5,0,22,0,13,14,15,0,0,0,0,0,2,0,0,-2,0,0,0,0,0,-6,16,0,0,0,0,0,0,0,0,0,0,0,0,-68,-70,-67,-60,-76,-42,-92,-64,-64,-41,-91,-64,-137,-44,-142,-152,-220,-214,-419,-401,-29982,-29983,-29971,-6507,-29998,-29999]} 1. Nf3 {[%emt 0:00:03]} Nf6 {[%emt 0:00:01]} 2. b3 {[%emt 0:00:02]} g6 {[%emt 0:00:02]} 3. Bb2 {[%emt 0:00:02]} Bg7 {[%emt 0:00:01]} 4. e3 {[%emt 0:00:01]} O-O {[%emt 0:00:02]} 5. d4 {[%emt 0:00:02]} d5 {[%emt 0:00:01]} 6. Be2 {[%emt 0:00:02]} Ne4 {[%emt 0:00:02]} 7. Nbd2 {[%emt 0:00:02]} c5 {[%emt 0:00:01]} 8. O-O {[%emt 0:00:06]} Nc6 {[%emt 0:00:02]} 9. Ne5 {[%emt 0:01:17]} Nxd2 {[%emt 0:01:43]} 10. Qxd2 {[%emt 0:00:02]} Nxe5 {[%emt 0:00:09] The position is equal.} 11. dxe5 {[%emt 0:00:01]} Be6 {[%emt 0:00:41]} 12. Rfd1 {[%emt 0:01:56]} Qc7 {[%emt 0:00:04]} 13. f4 {[%emt 0:00:02]} f6 {[%emt 0:00:22]} 14. exf6 {[%emt 0:00:46]} Bxf6 {[%emt 0:00:01]} 15. Bxf6 {[%emt 0:00:28]} exf6 {[%emt 0:00:01]} 16. Bf3 {[%emt 0:01:40]} Rad8 {[%emt 0:00:02]} 17. Qf2 {[%emt 0:00:45]} Rd7 {[%emt 0:01:36]} 18. Rd2 {[%emt 0:00:30]} Rfd8 {[%emt 0:00:07]} 19. Rad1 {[%emt 0:00:02]} Qa5 {[%emt 0:00:32]} 20. a4 {[%emt 0:01:06]} Kg7 {[%emt 0:01:44]} 21. h3 {[%emt 0:00:07]} Qb4 {[%emt 0:00:09]} 22. Qe2 {[%emt 0:00:48]} a6 {[%emt 0:01:18]} 23. Kh2 {[%emt 0:00:44]} Bf7 {[%emt 0:00:06]} 24. e4 {[%emt 0:00:50]} d4 {[%emt 0:00:14]} 25. e5 {[%emt 0:00:16]} Qb6 {[%emt 0:00:17]} 26. Bg4 {[%emt 0:00:16]} (26. Qe1 $11) 26... Re7 $15 {[%emt 0:00:07]} 27. exf6+ {[%emt 0:00:06]} Qxf6 {[%emt 0:00:03]} 28. Qf2 {[%emt 0:00:06]} Rde8 {[%emt 0:00:07] Black is more active.} 29. Re2 {[%emt 0:00:12]} (29. b4 $15) 29... Rxe2 {[%emt 0:00:17]} 30. Bxe2 {[%emt 0:00:01]} Re4 {[%emt 0:00:07]} 31. Rf1 {[%emt 0:00:06]} (31. g3 $15) 31... Re3 $17 {[%emt 0:00:04]} 32. Bd3 {[%emt 0:00:06]} (32. a5 $15) 32... Bd5 {[%emt 0:00:10]} (32... Bxb3 $1 $17 33. Bxa6 bxa6 (33... Bxa4 34. Bxb7 Bb5 35. Ra1 $17) 34. cxb3 Rxb3) 33. f5 {[%emt 0:00:10]} ({White should play} 33. Kg1 $15) 33... Qe5+ {[%emt 0:00:26]} 34. Kg1 {[%emt 0:00:04] [#]} (34. Qf4 $17 {was worth a try.}) 34... Rg3 $1 $19 {[%emt 0:00:09]} ({Wrong is} 34... Bxb3 $2 35. fxg6 Rxd3 (35... hxg6 $2 {perishes.} 36. Qf8+ Kh7 37. cxb3 $18) 36. cxd3 hxg6 37. a5 $18 (37. Qf8+ Kh7 $18)) 35. f6+ $2 {[%emt 0:00:07]} (35. fxg6 Rxg2+ 36. Qxg2 Bxg2 37. Rf7+ Kg8 38. Kxg2 hxg6 39. Rf3) 35... Kf8 {[%emt 0:00:01][%cal Oe5g5] Strongly threatening ...Qg5!} 36. Re1 {[%emt 0:00:04]} (36. Qd2 $19 Qe3+ (36... Bxg2 $2 37. Qxg2 Qg5 38. Rf2 $19) 37. Qxe3 Rxg2+ (37... dxe3 $2 38. Rf4 $19) 38. Kh1 dxe3 39. Bc4 Rf2+ (39... Rxc2+ 40. Bxd5 Rd2 41. Bf3 $16) 40. Kg1 Bxc4 41. bxc4) 36... Rxg2+ {[%emt 0:00:14]} 37. Qxg2 {[%emt 0:00:02]} Qxe1+ {[%emt 0:00:02]} 38. Qf1 {[%emt 0:00:01]} Qg3+ {[%emt 0:00:02] Weighted Error Value: White=0.73/Black=0.10 (very precise) .  Mistake:       	White=8     	Black=1      Inaccurate:     	---       	Black=2      OK:         	White=11    	Black=8      Best:        	---       	Black=3      Strong:       	---       	Black=1} 0-1

[Event "Memorial Ukrainian Chess Warriors 2024"]
[Site "Lviv"]
[Date "2024.03.15"]
[Round "3.16"]
[White "Vasynda, Oleksandr"]
[Black "Tretiak, Igor"]
[Result "0-1"]
[ECO "D02"]
[WhiteElo "2219"]
[BlackElo "1561"]
[Annotator "RC"]
[PlyCount "96"]
[EventDate "2024.03.06"]
[EventType "swiss"]
[EventCountry "UKR"]
[SourceTitle "playchess.com"]
[Source "ChessBase"]
[SourceQuality "1"]
[TimeControl "600+5"]

1. d4 {[%emt 0:00:01]} d5 {[%emt 0:00:01]} 2. Nf3 {[%emt 0:00:00]} Nf6 {[%emt 0:00:03]} 3. Bf4 {[%emt 0:00:03]} Bf5 {[%emt 0:00:01]} 4. e3 {[%emt 0:00:01]} e6 {[%emt 0:00:01]} 5. c4 {[%emt 0:00:01]} dxc4 {[%emt 0:00:22]} 6. Bxc4 {[%emt 0:00:04]} Bxb1 {[%emt 0:00:10]} 7. Rxb1 {[%emt 0:00:09]} Bb4+ {[%emt 0:00:01]} 8. Kf1 {[%emt 0:00:01]} Nbd7 {[%emt 0:00:06]} 9. Qb3 {[%emt 0:00:05]} Bd6 {[%emt 0:00:59]} 10. Bg3 {[%emt 0:00:58]} Nb6 {[%emt 0:00:11]} 11. Bd3 {[%emt 0:00:20]} O-O {[%emt 0:00:11]} 12. Rc1 {[%emt 0:00:13]} Rc8 {[%emt 0:00:07]} 13. Ke2 {[%emt 0:00:05]} c5 {[%emt 0:00:10]} 14. dxc5 {[%emt 0:00:09]} Rxc5 15. Rxc5 {[%emt 0:00:55]} Bxc5 {[%emt 0:00:23]} 16. Bh4 {[%emt 0:00:12]} Qe7 {[%emt 0:00:23]} 17. Rc1 {[%emt 0:00:48]} Nbd5 {[%emt 0:00:27]} 18. Bxh7+ {[%emt 0:00:21]} Kxh7 {[%emt 0:00:16]} 19. Qc2+ {[%emt 0:00:01]} Kg8 {[%emt 0:00:15]} 20. Qxc5 {[%emt 0:00:03]} Qd7 {[%emt 0:00:09]} 21. Bxf6 {[%emt 0:01:00]} Nxf6 {[%emt 0:00:17]} 22. b3 {[%emt 0:00:47]} Rd8 {[%emt 0:00:34]} 23. Qc2 {[%emt 0:00:17]} Nd5 {[%emt 0:00:29]} 24. a4 {[%emt 0:01:41]} Nb4 {[%emt 0:00:48]} 25. Qd2 {[%emt 0:00:28]} Qe7 {[%emt 0:01:03]} 26. Qc3 {[%emt 0:00:29]} Na2 {[%emt 0:00:09]} 27. Qc7 {[%emt 0:00:14]} Nxc1+ {[%emt 0:00:02]} 28. Qxc1 {[%emt 0:00:01]} Qd6 {[%emt 0:01:01]} 29. Qc2 {[%emt 0:00:13]} Rd7 {[%emt 0:00:33]} 30. Ng5 {[%emt 0:00:39]} Qd5 {[%emt 0:01:42]} 31. h4 {[%emt 0:00:42]} g6 {[%emt 0:01:11]} 32. f3 {[%emt 0:00:57]} Rd6 {[%emt 0:00:22]} 33. Ne4 {[%emt 0:00:12]} Rc6 {[%emt 0:00:00]} 34. Qb2 {[%emt 0:00:22]} Qd8 {[%emt 0:00:18]} 35. Nf6+ {[%emt 0:00:13]} Kf8 {[%emt 0:00:00]} 36. h5 {[%emt 0:00:04]} e5 {[%emt 0:00:08]} 37. Ne4 {[%emt 0:00:05]} Qc7 {[%emt 0:00:07]} 38. hxg6 {[%emt 0:00:05]} Rc2+ {[%emt 0:00:01]} 39. Qxc2 {[%emt 0:00:07]} Qxc2+ {[%emt 0:00:01]} 40. Kf1 {[%emt 0:00:00]} fxg6 {[%emt 0:00:01]} 41. b4 {[%emt 0:00:04]} Qc4+ {[%emt 0:00:02]} 42. Kf2 {[%emt 0:00:02]} Qxb4 {[%emt 0:00:01]} 43. Kg3 {[%emt 0:00:03]} Qxa4 {[%emt 0:00:02]} 44. Kg4 {[%emt 0:00:00]} Qd7+ {[%emt 0:00:01]} 45. Kg5 {[%emt 0:00:01]} a5 {[%emt 0:00:07]} 46. Kxg6 {[%emt 0:00:03]} a4 {[%emt 0:00:01]} 47. Nf6 {[%emt 0:00:02]} Qf7+ {[%emt 0:00:01]} 48. Kg5 {[%emt 0:00:01]} Qxf6+ {[%emt 0:00:01]} 0-1

[Event "Memorial Ukrainian Chess Warriors 2024"]
[Site "Lviv"]
[Date "2024.03.15"]
[Round "3.17"]
[White "Hychkevych, Vitaliy"]
[Black "Dovgaliuk, Oleksandr"]
[Result "1-0"]
[ECO "E81"]
[WhiteElo "1550"]
[BlackElo "1936"]
[Annotator "RC"]
[PlyCount "73"]
[EventDate "2024.03.06"]
[EventType "swiss"]
[EventCountry "UKR"]
[SourceTitle "playchess.com"]
[Source "ChessBase"]
[SourceQuality "1"]
[TimeControl "600+5"]

1. d4 {[%emt 0:00:01]} Nf6 {[%emt 0:00:01]} 2. c4 {[%emt 0:00:01]} g6 {[%emt 0:00:03]} 3. Nc3 {[%emt 0:00:02]} Bg7 {[%emt 0:00:01]} 4. e4 {[%emt 0:00:01]} d6 {[%emt 0:00:01]} 5. f3 {[%emt 0:00:01]} O-O {[%emt 0:00:10]} 6. Be3 {[%emt 0:00:02]} Nbd7 {[%emt 0:00:42]} 7. Nh3 {[%emt 0:00:04]} c5 {[%emt 0:00:06]} 8. d5 {[%emt 0:00:01]} a6 {[%emt 0:00:41]} 9. Nf2 {[%emt 0:00:06]} Rb8 {[%emt 0:00:08]} 10. a4 {[%emt 0:00:27]} Qc7 {[%emt 0:00:40]} 11. Be2 {[%emt 0:00:07]} e6 {[%emt 0:00:28]} 12. O-O {[%emt 0:00:17]} exd5 {[%emt 0:00:02]} 13. cxd5 {[%emt 0:00:07]} Re8 {[%emt 0:00:36]} 14. Rc1 {[%emt 0:00:12]} Qb6 {[%emt 0:00:36]} 15. Nd3 {[%emt 0:00:27]} Ne5 {[%emt 0:00:10]} 16. Nxe5 {[%emt 0:00:09]} Rxe5 {[%emt 0:00:01]} 17. Rb1 {[%emt 0:00:47]} Qa5 {[%emt 0:00:14]} 18. Bf4 {[%emt 0:00:10]} Nh5 {[%emt 0:00:21]} 19. Bd2 {[%emt 0:01:01]} Re8 {[%emt 0:00:21]} 20. f4 {[%emt 0:00:52]} Bd4+ {[%emt 0:01:59]} 21. Kh1 {[%emt 0:00:09]} Nf6 {[%emt 0:00:01]} 22. Bf3 {[%emt 0:01:54]} h5 {[%emt 0:00:48]} 23. h3 {[%emt 0:01:36]} Qd8 {[%emt 0:00:02]} 24. Qc2 {[%emt 0:00:49]} Bg4 {[%emt 0:02:11]} 25. Rbe1 {[%emt 0:01:05]} Qc8 {[%emt 0:00:14]} 26. Kh2 {[%emt 0:00:47]} Bxf3 {[%emt 0:00:18]} 27. gxf3 {[%emt 0:00:21]} h4 {[%emt 0:00:16]} 28. Ne2 {[%emt 0:00:01]} Nh5 {[%emt 0:00:01]} 29. f5 {[%emt 0:00:37]} gxf5 {[%emt 0:00:58]} 30. Rg1+ {[%emt 0:00:01]} Bxg1+ {[%emt 0:00:01]} 31. Rxg1+ {[%emt 0:00:01]} Kf8 {[%emt 0:00:19]} 32. Qc3 {[%emt 0:00:14]} Ng3 {[%emt 0:00:08]} 33. Nxg3 {[%emt 0:00:06]} hxg3+ {[%emt 0:00:01]} 34. Rxg3 {[%emt 0:00:03]} fxe4 {[%emt 0:00:01]} 35. Qf6 {[%emt 0:00:06]} e3 {[%emt 0:00:07]} 36. Qxd6+ {[%emt 0:00:02]} Re7 {[%emt 0:00:01]} 37. Bxe3 {[%emt 0:00:03]} 1-0